bitfinex/quotes_SOLUSD_20230112
["timestamp","ask_amount","ask_price","bid_price","bid_amount"]
[1673553681407,154.4144,16.528,16.51,125.2]
[1673553681627,20.0,16.527,16.51,125.2]
[1673553681838,45.39,16.526,16.51,125.2]
[1673553682164,20.0,16.525,16.511,20.0]
[1673553682373,20.0,16.525,16.512,17.0]
[1673553682559,20.0,16.525,16.513,20.0]
[1673553682896,117.5908,16.524,16.51,125.2]
[1673553683093,20.0,16.523,16.51,125.2]
[1673553683823,20.0,16.523,16.511,17.0]
[1673553684159,20.0,16.523,16.512,20.0]
[1673553684371,20.0,16.523,16.513,17.0]
[1673553684680,20.0,16.523,16.514,20.0]
[1673553684896,20.0,16.523,16.515,17.0]
[1673553685093,20.0,16.523,16.516,20.0]
[1673553686033,20.0,16.523,16.51,25.13]
[1673553686360,20.0,16.521,16.51,25.13]
[1673553686582,45.4,16.52,16.51,25.13]
[1673553687308,20.0,16.519,16.51,25.13]
[1673553689080,20.0,16.519,16.511,17.0]
[1673553690126,20.0,16.519,16.51,25.13]
[1673553691913,20.0,16.519,16.511,17.0]
[1673553693506,20.0,16.519,16.505,24.211731]
[1673553693721,20.0,16.519,16.506,20.0]
[1673553693722,65.41,16.519,16.506,20.0]
[1673553695168,20.0,16.517,16.506,20.0]
[1673553695374,45.42,16.516,16.506,20.0]
[1673553695717,20.0,16.515,16.506,20.0]
[1673553696658,20.0,16.515,16.501,20.0]
[1673553696848,20.0,16.515,16.502,17.0]
[1673553697060,20.0,16.515,16.503,20.0]
[1673553697698,45.42,16.514,16.501,20.0]
[1673553697911,20.0,16.513,16.501,20.0]
[1673553699380,20.0,16.513,16.502,17.0]
[1673553699590,20.0,16.513,16.503,20.0]
[1673553700238,20.0,16.513,16.501,20.0]
[1673553700877,20.0,16.513,16.502,17.0]
[1673553701081,20.0,16.513,16.503,20.0]
[1673553701268,20.0,16.513,16.504,17.0]
[1673553701481,130.4448,16.515,16.504,17.0]
[1673553701482,110.4448,16.515,16.504,17.0]
[1673553701695,110.4448,16.515,16.505,20.0]
[1673553702111,20.0,16.514,16.505,20.0]
[1673553703266,20.0,16.514,16.501,20.0]
[1673553703477,65.42,16.514,16.501,20.0]
[1673553706229,65.42,16.514,16.5,48.924107]
[1673553706437,134.1519,16.513,16.5,48.924107]
[1673553706655,45.43,16.512,16.5,24.224107]
[1673553706969,20.0,16.511,16.5,24.224107]
[1673553707171,20.0,16.511,16.49,124.37]
[1673553707614,20.0,16.511,16.491,17.0]
[1673553707823,20.0,16.511,16.49,191.306075]
[1673553708669,20.0,16.511,16.49,24.7]
[1673553708877,241.83,16.51,16.491,20.0]
[1673553709302,20.0,16.509,16.491,20.0]
[1673553709500,62.44,16.508,16.491,20.0]
[1673553709909,199.4,16.507,16.491,20.0]
[1673553710129,17.0,16.506,16.491,20.0]
[1673553710457,224.85,16.505,16.491,20.0]
[1673553710665,20.0,16.503,16.491,20.0]
[1673553712126,20.0,16.504,16.491,20.0]
[1673553712650,20.0,16.504,16.492,17.0]
[1673553712862,20.0,16.504,16.493,20.0]
[1673553713296,20.0,16.504,16.494,17.0]
[1673553713491,282.5263,16.506,16.493,20.0]
[1673553713492,237.0863,16.506,16.495,20.0]
[1673553713702,237.0863,16.506,16.493,20.0]
[1673553713703,237.0863,16.506,16.496,17.0]
[1673553713913,237.0863,16.506,16.497,20.0]
[1673553714753,20.0,16.505,16.493,20.0]
[1673553714964,20.0,16.505,16.494,17.0]
[1673553715173,20.0,16.505,16.495,20.0]
[1673553718219,45.45,16.504,16.491,20.0]
[1673553718427,65.45,16.505,16.491,20.0]
[1673553718652,65.45,16.505,16.491,38.75725104]
[1673553718972,20.0,16.505,16.491,38.75725104]
[1673553719383,20.0,16.505,16.492,17.0]
[1673553719594,20.0,16.505,16.493,20.0]
[1673553719809,65.45,16.505,16.493,20.0]
[1673553720225,65.45,16.505,16.491,20.0]
[1673553720960,17.0,16.504,16.491,20.0]
[1673553721375,20.0,16.503,16.491,20.0]
[1673553724032,20.0,16.503,16.492,18.75725104]
[1673553724230,20.0,16.503,16.493,20.0]
[1673553724441,14.81,16.503,16.493,20.0]
[1673553724777,14.81,16.503,16.494,18.75725104]
[1673553725086,14.81,16.503,16.494,17.0]
[1673553725279,14.81,16.503,16.495,20.0]
[1673553725490,14.81,16.503,16.496,17.0]
[1673553725711,14.81,16.503,16.497,20.0]
[1673553725907,14.81,16.503,16.495,20.0]
[1673553726444,14.81,16.503,16.492,20.0]
[1673553726653,14.81,16.503,16.493,17.0]
[1673553726860,14.81,16.503,16.494,20.0]
[1673553727698,14.81,16.503,16.491,20.0]
[1673553728239,20.0,16.501,16.491,20.0]
[1673553728445,17.0,16.5,16.491,20.0]
[1673553728654,20.0,16.499,16.491,20.0]
[1673553729697,20.0,16.499,16.485,20.0]
[1673553730023,20.0,16.499,16.486,17.0]
[1673553730210,20.0,16.499,16.487,20.0]
[1673553730421,20.0,16.499,16.488,17.0]
[1673553730633,20.0,16.499,16.489,20.0]
[1673553731790,20.0,16.499,16.49,17.0]
[1673553732000,20.0,16.499,16.491,20.0]
[1673553732545,20.0,16.499,16.484,24.247019]
[1673553732742,157.3187,16.498,16.484,24.247019]
[1673553733163,20.0,16.497,16.484,24.247019]
[1673553733375,45.47,16.496,16.484,24.247019]
[1673553733577,20.0,16.495,16.484,24.247019]
[1673553734332,241.88,16.494,16.47,193.9197]
[1673553734520,20.0,16.493,16.47,193.9197]
[1673553734736,62.48,16.492,16.47,227.2300152]
[1673553735155,62.48,16.492,16.47,251.4957612]
[1673553735584,65.47,16.495,16.48,124.57]
[1673553735784,20.0,16.495,16.48,124.57]
[1673553735990,20.0,16.495,16.481,35.75725104]
[1673553736200,45.46,16.498,16.482,20.0]
[1673553736417,20.0,16.497,16.49,24.91]
[1673553738002,20.0,16.497,16.484,18.75725104]
[1673553738212,20.0,16.497,16.485,37.0]
[1673553738434,20.0,16.501,16.49,124.51]
[1673553738631,20.0,16.505,16.491,37.0]
[1673553738842,20.0,16.505,16.491,55.75725104]
[1673553739162,45.43,16.51,16.492,52.06756624]
[1673553739370,45.43,16.51,16.493,37.0]
[1673553739585,45.43,16.51,16.493,89.06756624]
[1673553739586,113.5477,16.508,16.493,89.06756624]
[1673553739796,113.5477,16.508,16.494,33.3103152]
[1673553740002,113.5477,16.508,16.495,37.0]
[1673553740210,113.5477,16.508,16.5,24.91]
[1673553741256,113.5477,16.508,16.501,17.0]
[1673553742436,113.5477,16.508,16.5,24.91]
[1673553743172,20.0,16.511,16.501,20.0]
[1673553743380,110.4448,16.515,16.502,17.0]
[1673553743784,130.4448,16.515,16.503,38.75725104]
[1673553743995,130.4448,16.515,16.503,20.0]
[1673553744214,45.43,16.512,16.5,124.15]
[1673553744431,45.43,16.512,16.5,24.7]
[1673553744639,20.0,16.511,16.5,24.7]
[1673553744960,20.0,16.509,16.5,24.7]
[1673553748300,45.43,16.512,16.5,124.34]
[1673553748516,175.8648,16.515,16.501,37.0]
[1673553748724,130.4448,16.515,16.501,37.0]
[1673553749712,65.42,16.514,16.501,37.0]
[1673553750024,20.0,16.514,16.501,37.0]
[1673553750231,20.0,16.514,16.501,20.0]
[1673553750438,20.0,16.511,16.5,124.34]
[1673553750657,20.0,16.511,16.5,24.7]
[1673553750843,20.0,16.509,16.5,24.7]
[1673553754228,45.43,16.51,16.5,24.7]
[1673553754229,20.0,16.514,16.501,37.0]
[1673553757257,20.0,16.514,16.501,20.0]
[1673553757482,116.6989,16.516,16.501,20.0]
[1673553757679,45.4,16.522,16.51,24.91]
[1673553757887,112.2174,16.52,16.51,24.91]
[1673553758104,65.41,16.519,16.51,24.91]
[1673553758642,20.0,16.519,16.51,24.91]
[1673553758847,20.0,16.519,16.511,17.0]
[1673553759063,114.2943,16.524,16.511,17.0]
[1673553759277,114.2943,16.524,16.512,20.0]
[1673553759489,114.2943,16.524,16.513,17.0]
[1673553759675,114.2943,16.524,16.514,20.0]
[1673553759889,114.2943,16.524,16.515,17.0]
[1673553760104,114.2943,16.524,16.516,20.0]
[1673553761271,114.2943,16.524,16.51,124.98]
[1673553761272,20.0,16.523,16.511,20.0]
[1673553761471,20.0,16.523,16.512,17.0]
[1673553761681,20.0,16.523,16.513,20.0]
[1673553762535,20.0,16.523,16.514,17.0]
[1673553762727,20.0,16.523,16.515,20.0]
[1673553765376,20.0,16.523,16.516,17.0]
[1673553765582,20.0,16.523,16.517,20.0]
[1673553765898,20.0,16.523,16.518,17.0]
[1673553766510,20.0,16.527,16.517,20.0]
[1673553766733,20.0,16.527,16.511,20.0]
[1673553766936,20.0,16.527,16.512,17.0]
[1673553767151,20.0,16.527,16.513,20.0]
[1673553767361,20.0,16.527,16.514,17.0]
[1673553767691,20.0,16.527,16.515,20.0]
[1673553767899,20.0,16.527,16.52,24.91]
[1673553768609,65.38,16.529,16.52,24.91]
[1673553768825,20.0,16.529,16.521,17.0]
[1673553769132,20.0,16.529,16.52,24.91]
[1673553769890,45.38,16.528,16.515,20.0]
[1673553770096,20.0,16.527,16.511,20.0]
[1673553770305,19.5,16.527,16.512,17.0]
[1673553770513,19.5,16.527,16.513,20.0]
[1673553770725,19.5,16.527,16.514,17.0]
[1673553770934,45.39,16.526,16.514,17.0]
[1673553771140,45.39,16.526,16.515,20.0]
[1673553771358,19.5,16.527,16.515,20.0]
[1673553772211,20.0,16.525,16.515,20.0]
[1673553775695,20.0,16.529,16.516,17.0]
[1673553776000,20.0,16.529,16.52,24.91]
[1673553776214,20.0,16.529,16.521,17.0]
[1673553776822,20.0,16.529,16.52,24.91]
[1673553777050,65.38,16.529,16.52,24.91]
[1673553777265,20.0,16.529,16.52,24.91]
[1673553777457,45.38,16.528,16.52,24.91]
[1673553778088,65.38,16.529,16.52,24.91]
[1673553778305,20.0,16.529,16.52,24.91]
[1673553778739,65.38,16.529,16.52,24.91]
[1673553778957,65.38,16.529,16.515,20.0]
[1673553779153,65.38,16.529,16.512,20.0]
[1673553779465,65.38,16.529,16.51,124.77]
[1673553779466,65.38,16.529,16.513,17.0]
[1673553779679,65.38,16.529,16.514,20.0]
[1673553780085,65.38,16.529,16.511,20.0]
[1673553781251,65.38,16.529,16.512,17.0]
[1673553781467,65.38,16.529,16.513,20.0]
[1673553781682,65.38,16.529,16.514,17.0]
[1673553782205,65.38,16.529,16.515,20.0]
[1673553782617,17.0,16.528,16.515,20.0]
[1673553782817,20.0,16.526,16.515,20.0]
[1673553783018,20.0,16.526,16.511,20.0]
[1673553783233,20.0,16.526,16.512,17.0]
[1673553783444,20.0,16.526,16.513,20.0]
[1673553783766,20.0,16.526,16.514,17.0]
[1673553784088,20.0,16.526,16.515,20.0]
[1673553784307,45.39,16.525,16.515,20.0]
[1673553785461,65.39,16.526,16.515,20.0]
[1673553786277,20.0,16.526,16.516,17.0]
[1673553786492,20.0,16.526,16.517,20.0]
[1673553788930,20.0,16.529,16.517,20.0]
[1673553788931,20.0,16.529,16.52,24.91]
[1673553789242,114.2943,16.533,16.521,37.0]
[1673553790074,156.131,16.537,16.521,37.0]
[1673553791030,20.0,16.536,16.521,37.0]
[1673553791231,45.36,16.535,16.521,37.0]
[1673553791957,20.0,16.534,16.52,25.1]
[1673553792163,45.37,16.533,16.52,25.1]
[1673553792599,20.0,16.532,16.52,25.1]
[1673553792809,45.37,16.531,16.52,25.1]
[1673553793955,45.37,16.531,16.52,16.59]
[1673553794598,20.0,16.53,16.52,16.59]
[1673553794815,45.38,16.529,16.52,16.59]
[1673553795861,45.38,16.529,16.521,17.0]
[1673553796071,45.37,16.532,16.521,17.0]
[1673553797633,160.2351,16.533,16.522,20.0]
[1673553797854,114.8651,16.533,16.523,17.0]
[1673553798288,114.8651,16.533,16.524,20.0]
[1673553801224,160.2351,16.533,16.524,20.0]
[1673553802489,160.2351,16.533,16.521,20.0]
[1673553802895,114.8651,16.533,16.521,20.0]
[1673553803341,160.2351,16.533,16.522,17.0]
[1673553803537,114.8651,16.533,16.522,17.0]
[1673553803865,45.36,16.535,16.523,20.0]
[1673553804055,156.131,16.537,16.53,16.64]
[1673553804256,110.771,16.537,16.53,16.64]
[1673553806275,110.771,16.537,16.524,42.663395]
[1673553806276,45.36,16.536,16.524,42.663395]
[1673553806589,45.36,16.536,16.525,20.0]
[1673553807008,45.36,16.536,16.53,16.64]
[1673553808271,110.771,16.537,16.53,16.64]
[1673553808472,110.771,16.537,16.525,20.0]
[1673553808473,45.36,16.536,16.525,20.0]
[1673553808686,45.36,16.536,16.521,20.0]
[1673553808902,20.0,16.535,16.521,38.75725104]
[1673553809119,45.37,16.534,16.522,18.75725104]
[1673553809330,45.37,16.534,16.523,20.0]
[1673553809543,45.36,16.536,16.523,62.663395]
[1673553809751,45.36,16.536,16.53,16.64]
[1673553811026,110.771,16.537,16.53,16.64]
[1673553811242,45.35,16.54,16.531,17.0]
[1673553812580,45.35,16.54,16.532,20.0]
[1673553812811,45.33,16.547,16.533,17.0]
[1673553813136,160.1251,16.547,16.54,16.64]
[1673553813442,114.7951,16.547,16.54,16.64]
[1673553815734,45.32,16.55,16.54,16.64]
[1673553815939,45.32,16.55,16.541,17.0]
[1673553817121,65.32,16.55,16.541,17.0]
[1673553817326,65.32,16.55,16.54,16.64]
[1673553817745,20.0,16.549,16.54,16.64]
[1673553817941,45.33,16.548,16.54,16.64]
[1673553819856,45.33,16.548,16.541,17.0]
[1673553820041,20.0,16.549,16.541,17.0]
[1673553821226,45.31,16.554,16.541,17.0]
[1673553821439,45.32,16.55,16.541,17.0]
[1673553821649,20.0,16.549,16.541,17.0]
[1673553821871,45.33,16.548,16.54,16.64]
[1673553823849,20.0,16.549,16.541,17.0]
[1673553824060,65.32,16.55,16.54,16.64]
[1673553824271,65.32,16.55,16.541,17.0]
[1673553824494,45.31,16.553,16.541,17.0]
[1673553824703,155.5623,16.555,16.542,20.0]
[1673553825006,155.5623,16.555,16.543,35.75725104]
[1673553825215,155.5623,16.555,16.544,20.0]
[1673553825426,110.2523,16.555,16.545,17.0]
[1673553825650,110.2523,16.555,16.546,20.0]
[1673553825859,110.2523,16.555,16.547,17.0]
[1673553826274,110.2523,16.555,16.548,20.0]
[1673553826505,110.2523,16.555,16.549,17.0]
[1673553826817,110.2523,16.555,16.55,20.0]
[1673553827760,110.2523,16.555,16.544,20.0]
[1673553827962,110.2523,16.555,16.545,17.0]
[1673553828171,110.2523,16.555,16.546,20.0]
[1673553828370,110.2523,16.555,16.547,17.0]
[1673553828812,110.2523,16.555,16.548,20.0]
[1673553829957,110.2523,16.555,16.549,17.0]
[1673553830169,45.3,16.558,16.55,20.0]
[1673553830367,275.4625,16.56,16.551,17.0]
[1673553830789,230.1725,16.56,16.551,17.0]
[1673553831025,45.28,16.566,16.552,18.75725104]
[1673553831204,157.0387,16.566,16.553,37.0]
[1673553831565,157.0387,16.566,16.56,16.64]
[1673553831757,111.7587,16.566,16.56,16.64]
[1673553832385,24.150401,16.566,16.553,37.0]
[1673553832597,24.150401,16.566,16.56,83.03]
[1673553832815,24.150401,16.566,16.561,37.0]
[1673553833330,24.150401,16.566,16.562,18.75725104]
[1673553833539,24.150401,16.566,16.563,17.0]
[1673553833747,24.150401,16.566,16.564,20.0]
[1673553833958,24.150401,16.566,16.564,38.75725104]
[1673553834179,24.150401,16.566,16.565,18.75725104]
[1673553834391,24.150401,16.566,16.565,38.75725104]
[1673553834587,24.150401,16.566,16.565,20.0]
[1673553835000,20.0,16.565,16.552,7.541]
[1673553835239,45.28,16.564,16.554,49.06874755]
[1673553835542,20.0,16.563,16.55,83.13]
[1673553835761,45.29,16.562,16.55,101.88725104]
[1673553836366,45.29,16.562,16.55,83.13]
[1673553836599,45.29,16.562,16.551,38.75725104]
[1673553837009,45.29,16.562,16.552,18.75725104]
[1673553837225,20.0,16.563,16.553,20.0]
[1673553837547,20.0,16.563,16.553,38.75725104]
[1673553837769,20.0,16.563,16.554,17.0]
[1673553837950,20.0,16.563,16.555,20.0]
[1673553838284,20.0,16.563,16.556,17.0]
[1673553838476,20.0,16.563,16.557,20.0]
[1673553838680,20.0,16.563,16.555,20.0]
[1673553839115,20.0,16.563,16.554,20.0]
[1673553840276,20.0,16.563,16.553,20.0]
[1673553840685,20.0,16.563,16.553,38.75725104]
[1673553841106,20.0,16.563,16.554,17.0]
[1673553841316,20.0,16.563,16.555,20.0]
[1673553841526,20.0,16.563,16.556,17.0]
[1673553841737,175.5545,16.565,16.557,20.0]
[1673553842468,175.5545,16.565,16.555,20.0]
[1673553842677,175.5545,16.565,16.556,17.0]
[1673553842891,175.5545,16.565,16.557,20.0]
[1673553843222,45.26,16.571,16.56,16.54]
[1673553843407,45.26,16.571,16.561,17.0]
[1673553843620,45.26,16.571,16.562,20.0]
[1673553844255,45.26,16.571,16.561,20.0]
[1673553844478,20.0,16.57,16.56,16.54]
[1673553844676,45.27,16.569,16.56,13.552]
[1673553845004,177.1699,16.569,16.55,83.28]
[1673553845410,20.0,16.568,16.55,83.28]
[1673553845622,62.28,16.567,16.55,83.28]
[1673553846053,62.28,16.567,16.551,17.0]
[1673553846686,45.28,16.567,16.551,77.29510476]
[1673553847112,45.28,16.567,16.552,20.0]
[1673553847321,45.28,16.567,16.553,17.0]
[1673553847535,45.28,16.567,16.554,20.0]
[1673553848263,20.0,16.565,16.554,20.0]
[1673553848463,45.28,16.564,16.554,20.0]
[1673553848674,45.28,16.564,16.551,20.0]
[1673553848675,20.0,16.563,16.551,20.0]
[1673553848890,20.0,16.563,16.536,6.6042]
[1673553848891,62.29,16.562,16.54,16.81]
[1673553849327,241.69,16.562,16.54,16.81]
[1673553849649,20.0,16.561,16.54,16.81]
[1673553849832,179.4,16.559,16.54,16.81]
[1673553850043,179.4,16.557,16.54,16.81]
[1673553850264,20.0,16.555,16.54,16.81]
[1673553850468,62.31,16.554,16.54,16.81]
[1673553850686,20.0,16.553,16.54,16.81]
[1673553850891,181.1644,16.552,16.54,16.81]
[1673553851311,20.0,16.551,16.54,16.81]
[1673553851520,45.32,16.55,16.54,16.81]
[1673553852061,45.32,16.55,16.53,83.03]
[1673553852285,20.0,16.548,16.53,82.99]
[1673553852586,45.33,16.547,16.53,101.74725104]
[1673553852781,65.32,16.551,16.53,124.48]
[1673553853112,118.8444,16.554,16.54,24.83]
[1673553853426,20.0,16.553,16.54,124.76]
[1673553853846,20.0,16.553,16.541,17.0]
[1673553854368,118.8444,16.554,16.542,20.0]
[1673553854581,45.3,16.558,16.543,0.96]
[1673553854795,65.3,16.559,16.55,24.69]
[1673553855004,20.0,16.559,16.55,24.69]
[1673553855195,20.0,16.559,16.551,17.0]
[1673553855532,20.0,16.559,16.55,24.69]
[1673553855719,45.3,16.558,16.55,24.69]
[1673553856357,20.0,16.559,16.551,17.0]
[1673553857711,158.1365,16.56,16.551,17.0]
[1673553857927,45.28,16.564,16.552,20.0]
[1673553858138,184.0715,16.565,16.552,20.0]
[1673553858347,184.0715,16.565,16.553,17.0]
[1673553858567,184.0715,16.565,16.554,20.0]
[1673553859921,17.0,16.564,16.54,124.76]
[1673553860138,20.0,16.562,16.54,124.76]
[1673553860347,45.29,16.561,16.54,124.76]
[1673553860557,20.0,16.56,16.54,143.51725104]
[1673553860782,45.3,16.559,16.54,143.51725104]
[1673553861190,20.0,16.558,16.54,143.51725104]
[1673553861401,45.3,16.557,16.54,143.51725104]
[1673553861612,109.7898,16.556,16.54,143.51725104]
[1673553861942,45.31,16.555,16.541,17.0]
[1673553863084,45.31,16.555,16.542,20.0]
[1673553863295,45.31,16.555,16.543,17.0]
[1673553863503,45.31,16.555,16.544,20.0]
[1673553863713,45.31,16.555,16.545,17.0]
[1673553864027,109.7898,16.556,16.545,17.0]
[1673553864253,109.7898,16.556,16.55,24.86]
[1673553864459,109.7898,16.556,16.545,17.0]
[1673553864460,45.3,16.557,16.544,20.0]
[1673553864679,159.2048,16.557,16.545,17.0]
[1673553864863,159.2048,16.557,16.546,20.0]
[1673553865074,159.2048,16.557,16.547,17.0]
[1673553865829,159.2048,16.557,16.548,20.0]
[1673553866242,159.2048,16.557,16.549,17.0]
[1673553866564,113.9048,16.557,16.549,17.0]
[1673553866773,45.3,16.559,16.549,17.0]
[1673553866995,129.8924,16.56,16.549,17.0]
[1673553867384,45.3,16.559,16.549,17.0]
[1673553869595,20.0,16.558,16.548,20.0]
[1673553869804,20.0,16.558,16.543,20.0]
[1673553870125,45.3,16.557,16.541,38.75725104]
[1673553870545,45.3,16.557,16.542,51.00490103]
[1673553870766,20.0,16.558,16.543,20.0]
[1673553870979,20.0,16.558,16.55,24.86]
[1673553871187,20.0,16.558,16.551,17.0]
[1673553871385,45.3,16.557,16.551,17.0]
[1673553872973,20.0,16.558,16.551,17.0]
[1673553873186,45.3,16.557,16.551,17.0]
[1673553873380,20.0,16.558,16.551,17.0]
[1673553875385,65.29,16.563,16.551,17.0]
[1673553875607,20.0,16.563,16.552,21.92]
[1673553875794,20.0,16.565,16.553,17.0]
[1673553876007,20.0,16.565,16.554,20.0]
[1673553876219,20.0,16.565,16.555,17.0]
[1673553876434,20.0,16.565,16.556,20.0]
[1673553876761,20.0,16.565,16.557,17.0]
[1673553877170,20.0,16.565,16.558,20.0]
[1673553877373,20.0,16.565,16.559,17.0]
[1673553880227,20.0,16.565,16.558,20.0]
[1673553880450,65.28,16.564,16.551,20.0]
[1673553882624,65.28,16.564,16.55,124.56]
[1673553882858,65.28,16.564,16.55,25.08]
[1673553883903,20.0,16.562,16.55,25.08]
[1673553884139,45.29,16.561,16.54,124.26]
[1673553884528,45.29,16.561,16.543,20.0]
[1673553884729,20.0,16.56,16.543,20.0]
[1673553884939,20.0,16.558,16.543,20.0]
[1673553885153,155.1152,16.557,16.543,20.0]
[1673553885365,155.1152,16.557,16.541,20.0]
[1673553885577,20.0,16.556,16.541,20.0]
[1673553885806,45.31,16.555,16.541,20.0]
[1673553885994,20.0,16.554,16.541,20.0]
[1673553886418,45.31,16.553,16.541,20.0]
[1673553886837,20.0,16.552,16.541,20.0]
[1673553887272,20.0,16.552,16.542,17.0]
[1673553887481,45.32,16.551,16.543,20.0]
[1673553887692,20.0,16.552,16.544,17.0]
[1673553888093,20.0,16.552,16.545,20.0]
[1673553888302,20.0,16.552,16.546,17.0]
[1673553888855,20.0,16.552,16.547,20.0]
[1673553889038,20.0,16.552,16.548,17.0]
[1673553889378,45.31,16.555,16.549,20.0]
[1673553889564,45.31,16.555,16.55,17.0]
[1673553889774,20.0,16.556,16.55,17.0]
[1673553889998,20.0,16.556,16.55,41.77]
[1673553890629,20.0,16.559,16.55,41.77]
[1673553891250,111.4759,16.563,16.55,141.21]
[1673553891461,111.4759,16.563,16.551,38.75725104]
[1673553891686,111.4759,16.563,16.552,17.0]
[1673553892222,111.4759,16.563,16.553,20.0]
[1673553892443,111.4759,16.563,16.554,17.0]
[1673553892626,111.4759,16.563,16.555,20.0]
[1673553892832,20.0,16.562,16.555,20.0]
[1673553893263,20.0,16.562,16.556,17.0]
[1673553893693,20.0,16.562,16.557,20.0]
[1673553894002,65.28,16.565,16.558,17.0]
[1673553894215,20.0,16.566,16.559,20.0]
[1673553894413,20.0,16.566,16.56,41.77]
[1673553895494,20.0,16.566,16.56,24.77]
[1673553896633,20.0,16.566,16.559,20.0]
[1673553896850,20.0,16.566,16.56,17.0]
[1673553898636,20.0,16.566,16.551,20.0]
[1673553898845,65.28,16.566,16.551,20.0]
[1673553900418,17.0,16.565,16.54,124.3]
[1673553900630,20.0,16.562,16.54,124.3]
[1673553900838,45.29,16.561,16.54,143.05725104]
[1673553901037,45.29,16.561,16.55,24.65]
[1673553901369,156.0091,16.561,16.55,24.65]
[1673553901891,156.0091,16.561,16.551,17.0]
[1673553901892,110.7191,16.561,16.551,17.0]
[1673553902100,20.0,16.56,16.55,24.65]
[1673553902315,45.3,16.559,16.55,24.65]
[1673553902629,20.0,16.558,16.55,24.65]
[1673553903152,20.0,16.558,16.543,18.75725104]
[1673553903342,45.3,16.557,16.54,123.98]
[1673553903552,45.3,16.557,16.54,142.73725104]
[1673553903763,45.3,16.557,16.55,24.77]
[1673553903976,20.0,16.558,16.55,24.77]
[1673553904494,20.0,16.558,16.551,17.0]
[1673553905991,20.0,16.558,16.55,24.77]
[1673553906183,45.3,16.557,16.55,24.77]
[1673553906395,20.0,16.556,16.54,124.22]